Cogmind - Beta 14 @@@ ROGUE MODE // 2024.11.25 @ 10:15:53 Player: WazdakkaGutsmek Result: Destroyed by H3-4PO(R) with Subdweller Machine Gun Performance ------------- Evolutions (0) 0 Regions Visited (2) 400 Robots Destroyed (27) 135 Value Destroyed (671) 671 Prototype IDs (0) 0 Alien Tech Used (0) 0 Bonus (0) 0 TOTAL SCORE: 1206 Bonus ------- None Cogmind --------- Core Integrity 0/250 Matter 300/300 Energy 212/250 System Corruption 0% Temperature Cool (27) Movement Rolling (125) Ox3 Location -10/Subcaves Parts ------- > --- POWER (1) -------- Ion Engine > --- PROPULSION (2) --- Wheel > --- UTILITY (2) ------ Large Storage Unit > --- WEAPON (2) ------- Spread Laser Spread Laser > --- INVENTORY (15) --- Heavy Riot Gun Beam Rifle Beam Rifle Spread Laser Grenade Launcher Peak State ------------ > --- POWER ------------ Ion Engine > --- PROPULSION ------- Light Treads Light Treads > --- UTILITY ---------- Heat Sink Large Storage Unit > --- WEAPON ----------- Spread Laser Spread Laser > --- INVENTORY -------- Wheel Beam Rifle Beam Rifle Spread Laser Spread Laser Grenade Launcher [Rating: 10] Favorites ----------- Power Ion Engine Engine Ion Engine Propulsion Light Treads Treads Light Treads Leg Aluminum Leg Wheel Wheel Utility Large Storage Unit Device Heat Sink Storage Large Storage Unit Weapon Spread Laser Energy Gun Spread Laser Ballistic Gun Light Assault Rifle Build | -11 -10 -10 ------- Run | Yrd Mat Sub Slots Evolved . | . . . Power . | . . . Propulsion . | . . . Utility . | . . . Weapon . | . . . Parts Attached 11 | . 9 2 Power 1 | . 1 . Engine 1 | . 1 . Core . | . . . Reactor . | . . . Propulsion 3 | . 2 1 Treads 2 | . 2 . Leg . | . . . Wheel 1 | . . 1 Hover . | . . . Flight . | . . . Utility 2 | . 2 . Device 1 | . 1 . Storage 1 | . 1 . Processor . | . . . Hackware . | . . . Protection . | . . . Artifact . | . . . Weapon 5 | . 4 1 Energy Gun 3 | . 2 1 Energy Cannon . | . . . Ballistic Gun 2 | . 2 . Ballistic Cannon . | . . . Launcher . | . . . Special Weapon . | . . . Impact Weapon . | . . . Slashing Weapon . | . . . Piercing Weapon . | . . . Special Melee Weapon . | . . . Unidentified Prototypes . | . . . Parts Lost 4 | . . 4 Power . | . . . Propulsion 2 | . . 2 Utility 1 | . . 1 Weapon 1 | . . 1 Highest Loss Streak 4 | . . 4 To Critical Strikes . | . . . Average Slot Usage (%) 87 | . 89 84 Engine 14 | . 14 14 Treads 21 | . 23 14 Leg 3 | . 4 . Wheel 1 | . . 6 Device 4 | . 3 6 Storage 14 | . 14 14 Energy Gun 22 | . 20 27 Ballistic Gun 5 | . 7 . Peak Build Rating 10 | . 10 10 Average Rating 8 | . 7 8 On Entrance 7 | 6 6 10 Naked Turns . | . . . Heaviest Build 32 | 11 32 32 Greatest Support 40 | 20 40 40 Greatest Overweight (x) 10 | . . 10 Average Overweight (x) . | . . 1 Largest Inventory Capacity 15 | . 15 15 Average Capacity 14 | . 13 15 Most Carried 7 | . 7 6 Average Carried 5 | . 4 5 Final Capacity 15 | 8 15 15 Final Carried 6 | 6 6 5 Class Distribution -------------------- 100% | Mutant Dominant Class ---------------- Mutant | -10/Materials Mutant | -10/Subcaves Resources | -11 -10 -10 ----------- Run | Yrd Mat Sub Matter Collected 403 | 200 193 10 Remotely . | . . . Salvage Created 601 | . 481 120 Parts 43 | . 36 7 Haulers Intercepted 1 | . 1 . Recyclers Shooed . | . . . Parts Field Recycled . | . . . Retrieved Matter . | . . . Parts Self-Destructed . | . . . Prevented . | . . . Kills | -11 -10 -10 ------- Run | Yrd Mat Sub Combat Hostiles Destroyed 23 | . 16 7 Guns 23 | . 16 7 Classes Destroyed 6 | . 5 1 Hauler 1 | . 1 . Operator 2 | . 2 . Watcher 1 | . 1 . Swarmer 9 | . 9 . Grunt 7 | . 7 . Subdweller 7 | . . 7 Best Kill Streak 6 | . 6 3 Combat Bots Only 6 | . 6 3 Max Kills in Single Turn 2 | . 2 1 Gunslinging 1 | . 1 . Exploded . | . . . Melee . | . . . Uniques/NPCs Destroyed . | . . . Combat | -11 -10 -10 -------- Run | Yrd Mat Sub Hostile Shots Fired 95 | . 60 35 Missed 29 | . 18 11 Damage Taken 1077 | . 415 662 Core 266 | . 63 203 Absorbed by Shields . | . . . Core Remaining (%) 100 | 100 . . Volleys Fired 69 | . 43 26 Largest 2 | . 2 2 Hottest 130 | . 130 130 Shots Fired 134 | . 86 48 Gun 134 | . 86 48 Cannon . | . . . Launcher . | . . . Special . | . . . Kinetic 57 | . 57 . Thermal 66 | . 18 48 Explosive . | . . . Electromagnetic 11 | . 11 . Robot Hit Streak 25 | . 10 25 Robot Miss Streak 5 | . 5 5 Penetration Max . | . . . Secondary Targets 4 | . 1 3 Max Gunslinging Chain 1 | . 1 1 Shots Hit Robots 110 | . 63 47 Core Hits 95 | . 45 50 Critical Kills 1 | . 1 . Critical Parts Destroyed . | . . . Critical Strikes 1 | . 1 . Destroy 1 | . 1 . Melee Attacks . | . . . Impact . | . . . Slashing . | . . . Piercing . | . . . Sneak Attacks . | . . . Combat Hostiles . | . . . Follow-up Attacks . | . . . Damage Inflicted 1399 | . 666 733 Guns 1387 | . 654 733 Cannons . | . . . Explosions . | . . . Melee . | . . . Ramming 12 | . 12 . Kinetic 349 | . 349 . Thermal 938 | . 205 733 Explosive . | . . . Electromagnetic 100 | . 100 . Impact . | . . . Slashing . | . . . Piercing . | . . . Highest Corruption . | . . . Average Corruption . | . . . Corruption Purged . | . . . Corruption Blocked . | . . . Overload Shots . | . . . Overflow Damage . | . . . Projectiles . | . . . Explosions . | . . . Melee . | . . . Knockbacks . | . . . Impact . | . . . Kinetic . | . . . Secondary . | . . . Self-Inflicted Damage . | . . . Shots . | . . . Rammed . | . . . Targets Rammed 1 | . 1 . Kicked . | . . . Crushed 1 | . 1 . Highest Temperature 249 | . 249 72 Average Temperature 53 | . 68 28 Received Heat Transfer 219 | . 162 57 Siege Activations . | . . . Robots Corrupted . | . . . Combat Hostiles . | . . . Parts Fried . | . . . Impact Corruptions . | . . . Robots Melted . | . . . Combat Hostiles . | . . . Parts Melted 1 | . 1 . Heat Transferred 1165 | . 250 915 Parts Sabotaged . | . . . Parts Stolen . | . . . Parts Stripped . | . . . Power Chain Reactions . | . . . Alert | -11 -10 -10 ------- Run | Yrd Mat Sub Peak Influence 338 | . 338 . Initial . | . . . Average 155 | . 155 . Maximum Alert Level 1 | . 1 . Low Security (%) 68 | . 68 . Level 1 31 | . 31 . Level 2 . | . . . Level 3 . | . . . Level 4 . | . . . Level 5 . | . . . High Security . | . . . Max Security . | . . . Squads Dispatched 2 | . 2 . Investigation 1 | . 1 . Extermination . | . . . Reinforcement 1 | . 1 . Assault . | . . . Garrison . | . . . Intercept . | . . . Searches Triggered . | . . . Construction Impeded . | . . . Haulers Reinforced . | . . . Active Scanning Responses . | . . . Cargo Convoy Interrupts . | . . . Stealth | -11 -10 -10 --------- Run | Yrd Mat Sub Distress Signals . | . . . Communications Jammed . | . . . Distress Signals . | . . . Times Spotted 34 | . 24 10 Peak Tracking Total 4 | . 4 3 Tactical Retreats 2 | . 2 . Traps | -11 -10 -10 ------- Run | Yrd Mat Sub Traps Triggered 1 | . 1 . Indirectly . | . . . Trap Hack Attempts . | . . . Triggered . | . . . Disarmed . | . . . Reprogrammed . | . . . Reused . | . . . Traps Extracted . | . . . Installed . | . . . Triggered . | . . . Machines | -11 -10 -10 ---------- Run | Yrd Mat Sub Machines Disabled . | . . . Max in Single Turn . | . . . Machines Repaired . | . . . Machines Dismantled . | . . . Machines Sabotaged . | . . . Overloaded Fab Kills . | . . . Hacking | -11 -10 -10 --------- Run | Yrd Mat Sub Machines Accessed . | . . . Terminals . | . . . Fabricators . | . . . Repair Stations . | . . . Recycling Units . | . . . Scanalyzers . | . . . Garrison Access . | . . . Total Hacks . | . . . Successful . | . . . Failed . | . . . Catastrophic . | . . . Database Lockouts . | . . . Manual . | . . . Terminals . | . . . Fabricators . | . . . Repair Stations . | . . . Recycling Units . | . . . Scanalyzers . | . . . Garrison Access . | . . . Terminal Hacks . | . . . Fabricator Hacks . | . . . Repair Station Hacks . | . . . Recycling Unit Hacks . | . . . Scanalyzer . | . . . Garrison Access Hacks . | . . . Unauthorized Hacks . | . . . Terminals . | . . . Fabricators . | . . . Repair Stations . | . . . Recycling Units . | . . . Scanalyzers . | . . . Garrison Access . | . . . Data Cores Recovered 1 | . 1 . Used . | . . . Hacking Detections . | . . . Full Trace Events . | . . . Feedback Events . | . . . Feedback Blocked . | . . . Robot Schematics Acquired . | . . . Robots Built . | . . . Authchips . | . . . Time . | . . . Total Robot Build Rating . | . . . Part Schematics Acquired . | . . . Parts Built . | . . . Authchips . | . . . Time . | . . . Total Part Build Rating . | . . . Parts Repaired . | . . . Time . | . . . Parts Recycled . | . . . Recycled Matter . | . . . Retrieved Matter . | . . . Retrieved Components . | . . . Parts Scanalyzed . | . . . Part Schematics Acquired . | . . . Parts Damaged . | . . . Bothacking | -11 -10 -10 ------------ Run | Yrd Mat Sub Used RIF Installer . | . . . Robots Hacked . | . . . Non-combat . | . . . Combat . | . . . Robot Hacks Applied . | . . . Relay Couplers Released . | . . . Fabnet Peak Effective % . | . . . Robots Rewired . | . . . Allies Hacked . | . . . Hacks Repelled . | . . . Allies | -11 -10 -10 -------- Run | Yrd Mat Sub Total Allies . | . . . Largest Group . | . . . Highest-Rated Group . | . . . Highest-Rated Ally . | . . . Total Orders . | . . . Ally Attacks . | . . . Total Damage . | . . . Kills . | . . . Allies Corrupted . | . . . Allies Melted . | . . . Intel | -11 -10 -10 ------- Run | Yrd Mat Sub Robot Analysis Total . | . . . Derelict Logs Recovered . | . . . Drone Launches . | . . . Drone Recoveries . | . . . Exploration | -11 -10 -10 ------------- Run | Yrd Mat Sub Turns Passed 1461 | . 1159 302 Spaces Moved 585 | 1 432 152 Core 1 | . . 1 Treads 405 | . 331 74 Legs 102 | 1 101 . Wheels 77 | . . 77 Hover . | . . . Flight . | . . . Fastest Speed 120 | 120 120 125 Average Speed 149 | 120 150 144 Slowest Speed 550 | 120 160 550 Overloaded Moves . | . . . Propulsion Burnouts . | . . . Robots Hopped . | . . . Cave-ins Triggered . | . . . Exploration Rate (%) 34 | 2 86 14 Regions Visited 2 Branch Regions 1 Pre-discovered Areas . | . . . Known Exits Taken . | . . . Unknown Exits Taken 2 | 1 1 . Scrap Searched . | . . . Spaces Dug . | . . . Terrain Destroyed . | . . . Melee . | . . . Projectile . | . . . AOE . | . . . Terrain Rammed . | . . . Walls Destroyed . | . . . Machines Disabled . | . . . Actions | -11 -10 -10 --------- Run | Yrd Mat Sub Total 1051 | . 863 188 Wait 370 | . 363 7 Move 583 | . 431 152 Hop . | . . . Pick Up 7 | . 6 1 Fast Attach 4 | . 4 . Attach 6 | . 4 2 Detach . | . . . Swap 1 | . 1 . Drop 10 | . 10 . Fire 69 | . 43 26 Melee . | . . . Ram . | . . . Kick . | . . . Crush 1 | . 1 . Escape Stasis . | . . . Rewire . | . . . Trap . | . . . Miscellaneous . | . . . Route ------- -11/Scrapyard -10/Materials (discovered 6 exits: [*Mat x3] / [*Min x2] / [*Sub]) -10/Subcaves (discovered 1 exit: [*Mat]) History --------- Turn | Location | Event 1 | -11/Scrapyard | Discovered new exit (range 0) 1 | -11/Scrapyard | Entered Materials 64 | -10/Materials | Discovered new exit (range 6) 176 | -10/Materials | Discovered new exit (range 5) 317 | -10/Materials | Build established: Mutant 375 | -10/Materials | Discovered new exit (range 15) 516 | -10/Materials | Discovered new exit (range 15) 773 | -10/Materials | Discovered new exit (range 11) 1146 | -10/Materials | Discovered new exit (range 10) 1160 | -10/Materials | Entered Subcaves 1229 | -10/Subcaves | Discovered new exit (range 12) 1302 | -10/Subcaves | Core integrity fell below 50% 1310 | -10/Subcaves | Ambushed by Subdweller buried in earth 1318 | -10/Subcaves | Ambushed by Subdweller buried in earth 1356 | -10/Subcaves | Lost 4 parts (2n1u1w) 1386 | -10/Subcaves | Shifting Twisted Machinery released Battle Rifle 1389 | -10/Subcaves | Shifting Twisted Machinery released Hvy. Riot Gun 1457 | -10/Subcaves | Core integrity fell below 20% 1462 | -10/Subcaves | Destroyed by H3-4PO(R) with Subdweller Machine Gun Last Messages --------------- 01325_ Switching to secondary target: LX-DUL(R). 01325_ Lgt. Treads destroyed. 01328_ LX-DUL(R) destroyed. 01337_ Acquired 10 matter. 01344_ Subatomizers dissect the Sub. Machine Gun. 01358_ TX-J0M(R) destroyed. 01358_ Switching to secondary target: O6-QUG(R). 01361_ O6-QUG(R) affixes Scrap Shield Fragment to Scrap Shield. 01364_ O6-QUG(R) destroyed. 01366_ Subatomizers dissect the Sub. Machine Gun. Battle Rifle falls loose from the Twisted Machinery. Hvy. Riot Gun falls loose from the Twisted Machinery. 01398_ Acquired Hvy. Riot Gun. 01462_ 3U-HAU(R) destroyed. 01462_ Switching to secondary target: H3-4PO(R). Map ----- +----------------------------------------------------+ | ?????????????????????????????????????????????????? | | ?????????????????????????????????????????????????? | | ?????????????????????????????????????????????????? | | ?????????????????????????????????????????????????? | | ?????????????????????????????????????????????????? | | ?????????????????????????????????????????????????? | | ?????????????????????????????????????????????????? | | ?????????????????????????????????????????????????? | | ?????????????????????????????????????????????????? | | ?????????????????????????????????????????????????? | | ?????????????????????????????????????????????????? | | ?????????????????????????????????????????????????? | | ?????????????????????????????????????????????????? | | ???????????????????????????????????????????????#"# | | ??????????????????????????????????????????????##"" | | ??????????????????????????????????????????????# "" | | ??????????????????????????????????????????????##"# | | ??????????????????????????????????????????????# "" | | ??????????????????????????????????????????????# #" | | ??????????????????????????????????##########????## | | ????????????????????????????????### # ###### | | ????????????????????????????????# #" # | | ????????????????????????????????# " " | | ??????????????????##????#######?# # ## "" | | ??????????????????# ### # ### #? ####"# | | ??????????????????# R @ ## #??#### | | ??????????????????# &%& #???# ### | | ???????????? ## #???## | | ???????????# ??### ##Y ##??## | | ???????????## ?????# ### ##??## ### | | ????????????# ???????# #?## ##### ##?# | | ???????????? ????????# #??# ## ##??? | | ???????????? ?????????## ??## #???? | | ????????????? ???????????? #??## ## #####???? | | ?????????????#????????????? ##???#######???????? | | ??????????????????????????? #??????????????????? | | ?????????????????????????? #??????????????????? | | ?????????????????????????? ###??????????????????? | | ?????????????????????????? ?????????????????????? | | ?????????????????????????? ?????????????????????? | | ????????????????????????? ?????????????????????? | | ????????????????????????? ?????????????????????? | | ??????????????????????????? ?????????????????????? | | ?????????????????????????????????????????????????? | | ?????????????????????????????????????????????????? | | ?????????????????????????????????????????????????? | | ?????????????????????????????????????????????????? | | ?????????????????????????????????????????????????? | | ?????????????????????????????????????????????????? | | ?????????????????????????????????????????????????? | +----------------------------------------------------+ Best States ------------- Heat Dissipation 35 Energy Generation 10 Energy Capacity 250 Matter Stores 300 Matter Capacity 300 Sight Range 16 Terrain Scan Density 10 Evasion (%) 55 Recoil Reduction 2 Item Schematics ----------------- None Robot Schematics ------------------ None Fabricated ------------ Nothing Alien Tech Used ----------------- None Achievements -------------- None Challenges ------------ None Game ------ Seed NavigationSubdwellerStorage Manual? 0 Play Time 00:07:20 Cumulative 148.0 hours Start 2024.11.25 @ 10:09:52 End 2024.11.25 @ 10:15:53 Sessions 1 Manual Loads 0 Difficulty Rogue Special Mode None Game No. 134 Rogue 115 Adventurer 16 Explorer 3 Win Type - Total 10 Types 8/0/1/1/0/0/0/0/0 Lore% 37 Gallery% 68 Achievement% 59 Wizard Run 0 Options --------- Layout 2 ASCII 0 Keyboard 0 Movement Numpad Keybinds 1 Fullscreen 1 Font 24/Terminus Map View 50x44 Zoom Use 0% Tactical HUD 1 Map Filters NONE Filters NONE Steam 1 RUN: 96ca1038-ae74-4fd7-8c3b-dad51361f2c2